bitfinex-derivatives/quotes_BTCF0:USTF0_20241218
["timestamp","ask_amount","ask_price","bid_price","bid_amount"]
[1734551976440,0.6399279,102820.0,102810.0,0.00512228]
[1734551976638,7.959e-05,102820.0,102810.0,0.00512228]
[1734551976944,7.959e-05,102820.0,102810.0,0.00012228]
[1734551977348,0.36087959,102820.0,102810.0,0.00212228]
[1734551977642,7.959e-05,102820.0,102810.0,0.05578228]
[1734551977844,7.959e-05,102820.0,102810.0,0.00712228]
[1734551977845,0.36087959,102820.0,102810.0,0.00712228]
[1734551978148,0.40953459,102820.0,102810.0,0.00712228]
[1734551978344,0.6399279,102820.0,102810.0,0.00712228]
[1734551978552,0.40953459,102820.0,102810.0,0.00712228]
[1734551978735,0.36087959,102820.0,102810.0,0.00712228]
[1734551979135,0.40953459,102820.0,102810.0,0.00712228]
[1734551979349,0.36087959,102820.0,102810.0,0.00712228]
[1734551979546,0.409442,102850.0,102810.0,1.02728228]
[1734551979749,0.63984831,102820.0,102810.0,0.36648228]
[1734551980146,0.23039331,102820.0,102810.0,0.36648228]
[1734551980455,0.048651,102830.0,102810.0,0.36648228]
[1734551980648,9.975e-05,102820.0,102810.0,0.41514128]
[1734551980850,9.975e-05,102820.0,102810.0,0.00712228]
[1734551980851,0.59129306,102820.0,102810.0,0.00712228]
[1734551981050,0.63994806,102820.0,102810.0,0.00712228]
[1734551981249,0.36089975,102820.0,102810.0,0.00712228]
[1734551981549,0.112597,102840.0,102810.0,0.71658228]
[1734551981739,0.112597,102840.0,102830.0,0.04865]
[1734551981940,0.112597,102840.0,102820.0,0.3608]
[1734551982341,0.112597,102840.0,102820.0,0.409455]
[1734551982554,0.112597,102840.0,102830.0,0.04865]
[1734551982943,0.112597,102840.0,102830.0,0.40945]
[1734551982944,0.11272048,102840.0,102830.0,0.40945]
[1734551983251,0.39175979,102840.0,102810.0,0.36592228]
[1734551983445,0.36092348,102840.0,102810.0,0.41458128]
[1734551983645,0.00012348,102840.0,102830.0,0.04865]
[1734551983845,0.00012348,102840.0,102820.0,0.409454]
[1734551984042,0.00112348,102840.0,102820.0,0.3608]
[1734551984354,0.41057148,102840.0,102810.0,0.04878128]
[1734551984651,0.41057148,102840.0,102810.0,0.40958128]
[1734551984850,0.36192348,102840.0,102810.0,0.40958128]
[1734551985045,0.00012348,102840.0,102830.0,0.04865]
[1734551985240,0.00012348,102840.0,102830.0,0.40945]
[1734551985445,0.25508309,102850.0,102840.0,0.048645]
[1734551985650,0.25508309,102850.0,102840.0,0.409445]
[1734551985848,0.25508309,102850.0,102840.0,0.709445]
[1734551986153,0.473397,102850.0,102830.0,0.00136]
[1734551986340,0.00012223,102840.0,102820.0,0.409453]
[1734551986544,0.36092223,102840.0,102820.0,0.409454]
[1734551986753,0.00012223,102840.0,102820.0,0.348654]
[1734551986946,0.00012223,102840.0,102830.0,0.04865]
[1734551987249,0.00012223,102840.0,102830.0,0.40945]
[1734551987446,0.25508309,102850.0,102840.0,0.048645]
[1734551987649,0.16951778,102860.0,102850.0,0.048641]
[1734551987851,0.16901778,102860.0,102850.0,0.409441]
[1734551988243,0.19934685,102880.0,102870.0,0.048631]
[1734551988442,0.19943607,102880.0,102870.0,0.36087471]
[1734551988646,0.00154854,102880.0,102870.0,0.70950571]
[1734551988844,0.00154854,102880.0,102870.0,0.36087471]
[1734551989245,0.00154854,102880.0,102870.0,7.471e-05]
[1734551989447,0.00254854,102880.0,102870.0,0.04870571]
[1734551989851,0.00254854,102880.0,102870.0,0.40950571]
[1734551990245,0.00108922,102880.0,102870.0,0.04870571]
[1734551991046,0.00108922,102880.0,102870.0,0.70950571]
[1734551991546,8.922e-05,102880.0,102870.0,0.70950571]
[1734551991746,0.00108922,102880.0,102870.0,0.70950571]
[1734551992141,8.922e-05,102880.0,102870.0,0.41450571]
[1734551992350,8.922e-05,102880.0,102870.0,0.71650571]
[1734551992543,0.23048253,102880.0,102870.0,0.36787471]
[1734551992744,0.59128253,102880.0,102870.0,0.00707471]
[1734551992960,8.922e-05,102880.0,102870.0,0.00707471]
[1734551993453,8.922e-05,102880.0,102870.0,0.36787471]
[1734551994657,8.922e-05,102880.0,102870.0,0.41650071]
[1734551994956,8.922e-05,102880.0,102870.0,0.36787471]
[1734551995152,0.63990453,102880.0,102870.0,0.00707471]
[1734551995359,0.27910453,102880.0,102870.0,0.00707471]
[1734551995549,8.922e-05,102880.0,102870.0,0.00707471]
[1734551995950,8.922e-05,102880.0,102870.0,0.36787471]
[1734551996254,8.922e-05,102880.0,102870.0,0.00707471]
[1734551996451,0.23048253,102880.0,102870.0,0.36787471]
[1734551996844,0.64040453,102880.0,102870.0,0.00707471]
[1734551997454,0.048626,102870.0,102860.0,0.17404638]
[1734551997661,0.409426,102870.0,102860.0,0.17404638]
[1734551997856,0.048631,102860.0,102850.0,0.4061718]
[1734551998043,0.63982431,102860.0,102850.0,0.4061718]
[1734551998549,0.93982431,102860.0,102840.0,0.28662017]
[1734551998749,0.40953581,102850.0,102840.0,0.28662017]
[1734551998955,0.40953581,102850.0,102830.0,0.17409036]
[1734551999258,0.3608,102830.0,102820.0,0.51859489]
[1734551999449,0.409445,102830.0,102820.0,0.19574112]
[1734551999650,0.04865,102820.0,102810.0,0.55092649]
[1734551999955,0.63984331,102820.0,102810.0,0.55092649]
[1734552000151,0.93984331,102820.0,102810.0,0.55092649]
[1734552000342,0.89119331,102820.0,102800.0,0.1075]
[1734552000547,0.409455,102810.0,102800.0,0.1075]
[1734552000746,0.63984831,102810.0,102800.0,0.1075]
[1734552000954,0.93984831,102810.0,102800.0,0.108]
[1734552001153,0.048664,102790.0,102780.0,7.999e-05]
[1734552001351,1.00065731,102790.0,102780.0,7.999e-05]
[1734552001750,1.25199331,102790.0,102760.0,0.37272177]
[1734552001954,1.00066731,102770.0,102760.0,0.34830495]
[1734552002149,1.00066731,102770.0,102760.0,0.34393486]
[1734552002354,0.27906731,102770.0,102760.0,0.35813812]
[1734552002553,0.23039331,102770.0,102760.0,0.70473486]
[1734552002961,0.27906731,102770.0,102760.0,0.70480598]
[1734552003158,0.23039331,102770.0,102760.0,0.34400598]
[1734552003353,0.23039331,102770.0,102760.0,0.70480598]
[1734552003556,0.23039331,102770.0,102760.0,0.36087112]
[1734552003854,0.63986731,102770.0,102760.0,7.112e-05]
[1734552004163,0.57906731,102770.0,102760.0,7.112e-05]
[1734552004367,0.63986731,102770.0,102760.0,7.112e-05]
[1734552004566,0.65937185,102770.0,102760.0,0.00107112]
[1734552005064,0.048678,102760.0,102740.0,0.3928]
[1734552005261,0.409478,102760.0,102740.0,0.032]
[1734552005567,0.048683,102750.0,102740.0,0.032]
[1734552006049,0.048683,102750.0,102740.0,0.03210872]
[1734552006050,0.27907631,102750.0,102740.0,0.03210872]
[1734552006256,0.63987631,102750.0,102740.0,0.03210872]
[1734552006453,0.27907631,102750.0,102740.0,0.03210872]
[1734552006661,0.63987631,102750.0,102740.0,0.03210872]
[1734552006961,0.65942952,102750.0,102740.0,0.03210872]
[1734552007156,0.29862952,102750.0,102740.0,0.03210872]
[1734552007357,0.62244036,102770.0,102740.0,0.39290872]
[1734552007556,0.25189785,102770.0,102750.0,0.3608]
[1734552007755,0.29857485,102770.0,102750.0,0.3608]
[1734552008571,0.27907031,102770.0,102750.0,0.3608]
[1734552008958,0.28107031,102770.0,102750.0,0.3608]
[1734552009260,0.28107031,102770.0,102740.0,0.58317558]
[1734552009261,0.048678,102760.0,102740.0,0.57320872]
[1734552009469,0.28106731,102770.0,102740.0,0.87220872]
[1734552009668,0.64286731,102770.0,102750.0,0.3608]
[1734552010253,0.64186731,102770.0,102750.0,0.3608]
[1734552010553,0.048678,102760.0,102750.0,0.3608]
[1734552010764,0.048678,102760.0,102740.0,0.57220872]
[1734552010968,0.048678,102760.0,102740.0,0.87220872]
[1734552011160,0.048678,102760.0,102740.0,0.21140872]
[1734552011361,0.048678,102760.0,102740.0,0.57220872]
[1734552011552,0.048678,102760.0,102740.0,0.21140872]
[1734552011865,0.048683,102750.0,102740.0,0.57220872]
[1734552012068,0.3608,102760.0,102740.0,0.21240872]
[1734552012268,0.048688,102750.0,102740.0,0.21240872]
[1734552012459,0.048688,102750.0,102740.0,0.03310872]
[1734552012460,0.63988131,102750.0,102740.0,0.03310872]
[1734552012658,0.93988131,102750.0,102740.0,7.2e-07]
[1734552012859,0.63988131,102750.0,102740.0,7.2e-07]
[1734552013561,0.63999131,102750.0,102740.0,7.2e-07]
[1734552013865,0.63999131,102750.0,102740.0,0.005]
[1734552014068,0.409598,102750.0,102740.0,0.005]
[1734552014367,0.409598,102750.0,102740.0,0.001]
[1734552014569,0.409598,102750.0,102740.0,0.00096]
[1734552014956,0.63999131,102750.0,102740.0,0.00096]
[1734552015360,0.048694,102740.0,102720.0,0.0100939]
[1734552015568,0.409494,102740.0,102720.0,0.0100939]
[1734552016078,0.409498,102730.0,102720.0,0.0100939]
[1734552016459,0.63989131,102730.0,102720.0,0.0100939]
[1734552017372,0.64946233,102730.0,102720.0,0.0100939]
[1734552017668,0.94946233,102730.0,102720.0,0.0110939]
[1734552017871,0.94946233,102730.0,102700.0,0.1]
[1734552017872,0.048707,102710.0,102700.0,0.1]
[1734552018165,1.00070031,102710.0,102700.0,0.1]
[1734552018365,0.409507,102710.0,102700.0,0.1]
[1734552018573,0.409503,102720.0,102700.0,0.1]
[1734552018871,0.60076433,102730.0,102700.0,0.509508]
[1734552018872,0.66879602,102730.0,102700.0,0.509508]
[1734552019071,0.001,102710.0,102700.0,0.351708]
[1734552019368,0.001,102710.0,102700.0,0.9638]
[1734552019574,0.38970471,102730.0,102700.0,0.8687]
[1734552019876,0.38970471,102730.0,102710.0,0.3608]
[1734552020063,0.38970471,102730.0,102720.0,0.7216]
[1734552020064,0.02890471,102730.0,102720.0,0.7216]
[1734552020264,0.06870534,102750.0,102720.0,0.95199331]
[1734552020462,0.06870534,102750.0,102730.0,0.3608]
[1734552020663,0.06870534,102750.0,102740.0,0.3608]
[1734552020968,0.02001634,102750.0,102730.0,0.23039331]
[1734552021171,0.08522598,102770.0,102740.0,1.14619331]
[1734552021471,0.01,102780.0,102760.0,0.63987531]
[1734552021771,0.01,102780.0,102770.0,0.048679]
[1734552021968,0.08522598,102790.0,102770.0,0.409479]
[1734552022164,0.08522598,102790.0,102780.0,0.23039331]
[1734552022360,0.08522598,102790.0,102780.0,0.59119331]
[1734552022361,0.00011791,102790.0,102780.0,0.59119331]
[1734552022576,0.00011791,102790.0,102780.0,0.53039331]
[1734552022767,0.49468698,102810.0,102780.0,0.93986731]
[1734552022971,0.08522598,102810.0,102800.0,0.23039331]
[1734552023462,0.001,102790.0,102780.0,0.83106731]
[1734552023665,0.004,102790.0,102770.0,0.04879482]
[1734552023875,0.004,102790.0,102770.0,0.00011582]
[1734552023876,0.05275445,102790.0,102770.0,0.00011582]
[1734552024073,0.59227576,102790.0,102770.0,0.00011582]
[1734552024265,0.36088245,102790.0,102770.0,0.00011582]
[1734552024466,8.245e-05,102790.0,102760.0,0.24014745]
[1734552024666,8.245e-05,102790.0,102770.0,0.3608]
[1734552024873,8.245e-05,102790.0,102780.0,0.63986731]
[1734552025064,0.08672598,102810.0,102780.0,0.79939331]
[1734552025272,0.17990114,102830.0,102810.0,0.04866]
[1734552025467,0.16990114,102820.0,102810.0,0.40946]
[1734552025660,0.16990114,102820.0,102810.0,0.34866]
[1734552025865,0.16990114,102820.0,102810.0,0.70946]
[1734552026061,0.16997424,102820.0,102810.0,0.40954854]
[1734552026270,0.16997424,102820.0,102810.0,8.854e-05]
[1734552026474,7.31e-05,102820.0,102810.0,8.854e-05]
[1734552026768,0.0010731,102820.0,102800.0,0.409463]
[1734552026967,0.0005,102810.0,102800.0,0.348663]
[1734552027166,0.0005,102810.0,102800.0,0.709463]
[1734552027366,0.3608,102820.0,102800.0,0.3608]
[1734552027573,0.3608,102810.0,102790.0,0.1932]
[1734552027874,0.3608,102810.0,102790.0,0.241868]
[1734552027875,0.3613,102810.0,102790.0,0.241868]
[1734552028072,0.3613,102810.0,102800.0,0.048665]
[1734552028369,0.0005,102810.0,102800.0,0.34877163]
[1734552028574,0.00010808,102820.0,102810.0,0.04866]
[1734552028774,0.01,102830.0,102810.0,0.63985331]
[1734552028964,0.01,102830.0,102810.0,0.40946]
[1734552029165,0.01,102830.0,102810.0,0.04866]
[1734552029367,0.3708,102830.0,102810.0,0.04866]
[1734552029672,0.3608,102820.0,102800.0,0.02560905]
[1734552029872,0.36090211,102810.0,102800.0,0.02560905]
[1734552030063,0.00010211,102810.0,102800.0,0.07027405]
[1734552030263,0.00010211,102810.0,102800.0,0.36827405]
[1734552030469,0.00010211,102810.0,102800.0,0.06827405]
[1734552030675,0.00010211,102810.0,102800.0,0.00010663]
[1734552030872,0.36090211,102810.0,102800.0,0.00010663]
[1734552031172,0.36390211,102810.0,102800.0,0.00010663]
[1734552031371,0.00310211,102810.0,102800.0,0.04877063]
[1734552031568,0.00310211,102810.0,102800.0,0.40957063]
[1734552031964,0.3708,102830.0,102810.0,0.048658]
[1734552032165,0.01,102830.0,102820.0,0.048655]
[1734552032367,0.01,102830.0,102820.0,0.409455]
[1734552032572,0.3608,102870.0,102820.0,0.71029325]
[1734552032772,0.3608,102870.0,102840.0,0.3608]
[1734552032970,9.146e-05,102850.0,102840.0,0.3608]
[1734552033175,0.36089146,102850.0,102820.0,0.2032]
[1734552033375,0.36089146,102850.0,102820.0,0.66219344]
[1734552033567,0.3608,102840.0,102820.0,0.048655]
[1734552033767,0.3608,102840.0,102820.0,0.048653]
[1734552033975,9.146e-05,102850.0,102830.0,0.40945]
[1734552034279,9.146e-05,102850.0,102840.0,0.048645]
[1734552034581,0.003,102870.0,102860.0,0.048636]
[1734552034769,0.003,102870.0,102860.0,1.00062931]
[1734552034966,0.01,102890.0,102880.0,0.048627]
[1734552035380,0.01,102890.0,102880.0,0.9399276]
[1734552035579,0.10012067,102900.0,102890.0,0.048622]
[1734552035879,0.19788753,102910.0,102900.0,0.048617]
[1734552036175,0.60730053,102910.0,102880.0,0.04873329]
[1734552036374,0.60730053,102910.0,102880.0,0.00010729]
[1734552036375,0.3608,102890.0,102880.0,0.00010729]
[1734552036566,0.048627,102880.0,102850.0,0.05009709]
[1734552036765,0.3608,102870.0,102850.0,0.2804904]
[1734552036965,0.3618,102890.0,102850.0,0.8926514]
[1734552037169,0.001,102890.0,102880.0,0.048627]
[1734552037366,0.001,102890.0,102880.0,0.409427]
[1734552037581,0.00210243,102910.0,102890.0,0.048621]
[1734552037771,0.00210243,102910.0,102890.0,0.63981431]
[1734552037970,0.00210243,102910.0,102880.0,7.924e-05]
[1734552037971,0.36290243,102910.0,102880.0,7.924e-05]
[1734552038271,0.00210243,102910.0,102890.0,0.3608]
[1734552038471,0.00210243,102910.0,102900.0,0.409417]
[1734552038671,0.00010243,102910.0,102900.0,0.048617]
[1734552038868,0.36090243,102910.0,102900.0,0.048617]
[1734552039173,0.36090243,102910.0,102890.0,0.27901431]
[1734552039374,0.00310243,102910.0,102900.0,0.048617]
[1734552039575,0.00310243,102910.0,102900.0,0.409417]
[1734552039775,0.00110243,102910.0,102900.0,0.409417]
[1734552039979,0.00310243,102910.0,102900.0,0.409417]
[1734552040376,0.00310243,102910.0,102900.0,0.709417]
[1734552040676,0.00310243,102910.0,102900.0,0.409417]
[1734552041084,0.00310243,102910.0,102900.0,0.048617]
[1734552041285,0.00310243,102910.0,102900.0,0.409417]
[1734552041476,0.36390243,102910.0,102890.0,0.23039331]
[1734552041877,0.3608,102900.0,102880.0,7.924e-05]
[1734552042172,0.3608,102890.0,102880.0,7.924e-05]
[1734552042578,0.36390243,102910.0,102880.0,0.36087924]
[1734552042787,0.36290243,102910.0,102880.0,7.924e-05]
[1734552043085,0.002,102900.0,102890.0,0.63981331]
[1734552043386,0.00010243,102910.0,102890.0,0.63981331]
[1734552043590,0.00010243,102910.0,102900.0,0.409417]
[1734552043974,0.00010243,102910.0,102900.0,0.709417]
[1734552044179,0.00010243,102910.0,102900.0,0.409417]
[1734552044379,0.00010243,102910.0,102900.0,0.048617]
[1734552044678,0.36090243,102910.0,102880.0,0.19127924]
[1734552044878,0.3608,102890.0,102880.0,0.04870624]
[1734552045077,0.00010243,102910.0,102890.0,0.048619]
[1734552045285,0.00010243,102910.0,102900.0,0.409417]
[1734552045478,0.36090243,102910.0,102880.0,7.924e-05]
[1734552045686,0.3608,102900.0,102880.0,0.04870524]
[1734552045877,0.002,102900.0,102890.0,0.048622]
[1734552046383,0.36090243,102910.0,102890.0,0.048622]
[1734552046576,0.3608,102900.0,102880.0,0.04870524]
[1734552046783,0.3608,102890.0,102880.0,7.924e-05]
[1734552047578,0.409422,102890.0,102880.0,7.924e-05]
[1734552048391,0.409422,102890.0,102830.0,0.64080131]
[1734552048392,0.048627,102880.0,102830.0,0.64080131]
[1734552048694,0.3608,102860.0,102840.0,0.048645]
[1734552048878,0.3608,102850.0,102830.0,0.64080231]
[1734552049290,0.709445,102850.0,102840.0,7.038e-05]
[1734552049493,1.070245,102850.0,102810.0,0.00145885]
[1734552049686,0.3608,102820.0,102810.0,0.00145885]
[1734552049884,0.63984831,102820.0,102810.0,0.00145885]
[1734552050289,0.59119331,102820.0,102810.0,0.00145885]
[1734552050490,0.63993528,102820.0,102810.0,0.00145885]
[1734552050998,0.40954197,102820.0,102800.0,0.10012332]
[1734552051198,0.3608,102810.0,102800.0,0.10012332]
[1734552051390,0.40946,102810.0,102800.0,0.10012332]
[1734552052095,0.048666,102800.0,102760.0,0.048683]
[1734552052284,0.3608,102790.0,102770.0,0.01966032]
[1734552052597,0.3608,102790.0,102770.0,0.06833832]
[1734552052791,0.3608,102780.0,102770.0,0.06833832]
[1734552053094,0.3608,102780.0,102770.0,0.01976848]
[1734552053806,0.3628,102790.0,102770.0,0.04878716]
[1734552054096,0.001,102780.0,102770.0,0.40958716]
[1734552054587,0.001,102780.0,102770.0,0.70958716]
[1734552054895,0.002,102790.0,102780.0,0.048674]
[1734552055087,0.002,102790.0,102770.0,0.00010816]
[1734552055283,0.002,102780.0,102770.0,0.00010816]
[1734552055591,0.3628,102780.0,102770.0,0.00010816]
[1734552055891,0.3608,102780.0,102770.0,0.00410816]
[1734552056298,0.3608,102780.0,102770.0,0.00710816]
[1734552056489,0.3608,102780.0,102770.0,0.00410816]
[1734552056889,0.23039331,102800.0,102770.0,0.36190816]
[1734552056890,0.3608,102800.0,102770.0,0.36190816]
[1734552057094,0.001,102780.0,102770.0,0.34978716]
[1734552057299,0.001,102780.0,102770.0,0.71058716]
[1734552057497,0.3608,102810.0,102780.0,0.048672]
[1734552057683,0.36088697,102820.0,102780.0,0.63986531]
[1734552057884,0.3608,102810.0,102800.0,0.0005]
[1734552058091,0.36088697,102820.0,102800.0,0.0005]
[1734552058297,0.3608,102810.0,102800.0,0.0005]
[1734552058787,0.002,102810.0,102800.0,0.0005]
[1734552058991,0.3628,102810.0,102800.0,0.0005]
[1734552059193,0.3608,102810.0,102800.0,0.0005]
[1734552059789,0.3628,102810.0,102800.0,0.0005]
[1734552060191,0.41146,102810.0,102800.0,0.0005]
[1734552060589,0.71146,102810.0,102800.0,0.0005]
[1734552060788,0.048671,102790.0,102770.0,0.00010816]
[1734552060988,0.6628,102810.0,102750.0,0.00145967]
[1734552060989,0.95208824,102780.0,102750.0,0.00145967]
[1734552061311,0.770283,102760.0,102750.0,0.00145967]
[1734552061495,0.3608,102770.0,102740.0,0.23021394]
[1734552061697,0.3608,102760.0,102740.0,0.048691]
[1734552061897,0.3608,102760.0,102730.0,1.01362329]
[1734552062087,0.3608,102770.0,102750.0,0.00011452]
[1734552062997,9.493e-05,102780.0,102770.0,0.048679]
[1734552063301,0.37179705,102810.0,102790.0,0.048669]
[1734552063302,0.00146027,102810.0,102790.0,0.048669]
[1734552063497,0.11229414,102820.0,102810.0,0.04866]
[1734552063796,0.11229414,102820.0,102810.0,0.63985331]
[1734552064101,0.27147555,102850.0,102840.0,0.048645]
[1734552064401,0.27155621,102850.0,102840.0,0.409445]
[1734552064702,0.27155621,102850.0,102840.0,0.348645]
[1734552064891,0.27155621,102850.0,102840.0,0.048645]
[1734552065092,0.63235621,102850.0,102830.0,0.63984131]
[1734552065296,0.3608,102840.0,102820.0,0.048655]
[1734552065492,0.37844066,102850.0,102840.0,0.005]
[1734552065688,0.01764066,102850.0,102840.0,0.353645]
[1734552065897,0.37844066,102850.0,102840.0,0.005]
[1734552066102,0.42708266,102850.0,102830.0,0.001]
[1734552066305,0.3608,102840.0,102830.0,0.001]
[1734552066805,0.3608,102840.0,102830.0,0.00051323]
[1734552066806,0.93983831,102840.0,102830.0,0.00051323]
[1734552067099,0.40945,102830.0,102770.0,0.19985938]
[1734552067296,1.13233831,102840.0,102770.0,0.00145938]
[1734552067297,0.3608,102780.0,102770.0,0.00145938]
[1734552067703,0.63986331,102790.0,102770.0,0.00145938]
[1734552067898,0.3608,102780.0,102770.0,0.00145938]
[1734552068089,0.36091759,102780.0,102770.0,0.00157448]
[1734552068295,0.40959159,102780.0,102770.0,0.00157448]
[1734552069096,0.40959159,102780.0,102770.0,0.0001151]
[1734552069294,0.36091759,102780.0,102770.0,0.0001151]
[1734552069496,0.00011759,102780.0,102770.0,0.0011151]
[1734552069700,0.40959159,102780.0,102770.0,0.0011151]
[1734552069901,0.6399849,102780.0,102770.0,0.0011151]
[1734552070306,0.36091759,102780.0,102770.0,0.0011151]
[1734552070799,0.36091759,102780.0,102770.0,0.0497941]
[1734552070999,0.00011759,102780.0,102770.0,0.94198741]
[1734552071402,0.36226027,102810.0,102790.0,0.048669]
[1734552071403,0.00146027,102810.0,102790.0,0.048669]
[1734552071597,0.36226027,102810.0,102790.0,0.57906231]
[1734552071901,0.3608,102800.0,102780.0,0.3608]
[1734552072306,0.36090627,102800.0,102780.0,0.348674]
[1734552072509,0.3608,102790.0,102770.0,0.23050841]
[1734552072806,0.63986731,102780.0,102770.0,0.0001151]
[1734552073209,0.048683,102760.0,102750.0,0.0005]
[1734552073407,0.409483,102760.0,102750.0,0.0005]
[1734552073917,0.93987631,102760.0,102750.0,0.0005]
[1734552074107,1.14867631,102760.0,102750.0,0.0005]
[1734552074310,0.048693,102740.0,102730.0,8.371e-05]
[1734552074506,0.770293,102740.0,102730.0,8.371e-05]
[1734552074816,1.00068631,102740.0,102730.0,8.371e-05]
[1734552075219,0.770293,102740.0,102730.0,8.371e-05]
[1734552075512,0.770293,102740.0,102730.0,0.00208371]
[1734552075713,0.7216,102740.0,102730.0,0.00208371]
[1734552075912,0.7216,102740.0,102730.0,0.28117502]
[1734552076217,9.685e-05,102760.0,102730.0,0.89327702]
[1734552076423,9.685e-05,102760.0,102740.0,0.048691]
[1734552076617,9.685e-05,102760.0,102750.0,0.27908131]
[1734552076914,9.685e-05,102760.0,102750.0,0.63988131]
[1734552077110,0.3608,102790.0,102760.0,0.048683]
[1734552077313,0.3608,102790.0,102760.0,0.709483]
[1734552077504,0.002,102760.0,102750.0,0.2086]
[1734552077711,0.3628,102760.0,102740.0,0.2008]
[1734552077911,0.3608,102750.0,102740.0,0.5003]
[1734552078214,0.36091796,102760.0,102740.0,0.5003]
[1734552078419,0.36091796,102760.0,102740.0,0.8611]
[1734552078711,0.36091796,102760.0,102750.0,0.23039331]
[1734552078712,0.36291796,102760.0,102750.0,0.23039331]
[1734552078913,0.00211796,102760.0,102750.0,0.89119331]
[1734552079124,1e-08,102760.0,102750.0,0.93988131]
[1734552079316,0.002,102760.0,102750.0,0.23039331]
[1734552079512,0.3628,102760.0,102740.0,0.62971532]
[1734552079706,0.3608,102750.0,102740.0,0.52022332]
[1734552079912,0.3628,102760.0,102740.0,0.56891632]
[1734552080117,0.3628,102760.0,102750.0,0.23039331]
[1734552080315,0.002,102760.0,102750.0,0.23039331]
[1734552080622,0.00010579,102770.0,102760.0,0.048683]
[1734552080923,0.3608,102800.0,102770.0,0.048679]
[1734552081121,0.3608,102800.0,102780.0,0.3608]
[1734552081323,0.1411058,102810.0,102790.0,0.63986131]
[1734552081522,0.1411058,102810.0,102800.0,0.409464]
[1734552081723,0.1411058,102810.0,102800.0,0.40955201]
[1734552082021,0.02149,102850.0,102800.0,0.75891451]
[1734552082221,0.02149,102850.0,102840.0,0.59119331]
[1734552082431,0.02149,102850.0,102840.0,0.23039331]
[1734552082724,0.17117476,102860.0,102850.0,0.048641]
[1734552082923,0.17117476,102860.0,102850.0,0.3608]
[1734552083222,0.17117476,102860.0,102850.0,0.0001233]
[1734552083415,0.409433,102870.0,102850.0,0.0001233]
[1734552083819,0.36090881,102880.0,102860.0,0.23039331]
[1734552084024,0.36090881,102880.0,102850.0,0.6596033]
[1734552084025,0.23050212,102880.0,102850.0,0.0001233]
[1734552084227,0.3608,102870.0,102850.0,0.0001233]
[1734552084535,0.00010881,102880.0,102860.0,0.3608]
[1734552084734,0.3608,102870.0,102850.0,0.0021233]
[1734552084934,0.409436,102860.0,102850.0,0.0021233]
[1734552085128,0.63982931,102860.0,102850.0,0.0021233]
[1734552085329,0.93982931,102860.0,102850.0,0.0001233]
[1734552085631,0.048641,102850.0,102840.0,0.22954082]
[1734552085826,0.409441,102850.0,102840.0,0.22954082]
[1734552086029,0.709441,102850.0,102840.0,0.22954082]
[1734552086227,0.409441,102850.0,102840.0,0.22954082]
[1734552086541,0.409441,102850.0,102830.0,0.00012305]
[1734552086829,0.001,102870.0,102840.0,0.59119331]
[1734552087036,0.00010881,102880.0,102860.0,0.63982731]
[1734552087334,0.00010881,102880.0,102870.0,0.768791]
[1734552087540,0.00010881,102880.0,102870.0,0.72016]
[1734552087726,0.1,102900.0,102870.0,1.02016]
[1734552087926,0.1,102900.0,102890.0,0.63981531]
[1734552088434,0.1,102900.0,102890.0,0.57901531]
[1734552088731,0.3608767,102920.0,102890.0,0.89119331]
[1734552088936,0.39394812,102950.0,102920.0,0.048607]
[1734552088937,0.3608,102940.0,102920.0,0.048607]
[1734552089135,0.3608,102950.0,102930.0,0.27899631]
[1734552089339,0.3608,102950.0,102930.0,0.23039331]
[1734552089728,0.3608,102940.0,102930.0,0.23039331]
[1734552090128,0.00011737,102950.0,102930.0,0.23039331]
[1734552090334,0.3608,102940.0,102930.0,0.23039331]
[1734552090525,0.00011737,102950.0,102930.0,0.23039331]
[1734552090726,0.00111737,102950.0,102930.0,0.59119331]
[1734552091132,0.048604,102930.0,102890.0,0.0015271]
[1734552091331,0.3608,102910.0,102890.0,0.0015271]
[1734552091530,0.409417,102900.0,102890.0,0.0015271]
[1734552091735,0.59119331,102910.0,102890.0,0.0015271]
[1734552091932,0.3608,102920.0,102890.0,0.0015271]
[1734552092134,0.3608,102900.0,102890.0,0.0015271]
[1734552092636,0.409417,102900.0,102890.0,0.0015271]
[1734552093143,0.3608,102900.0,102890.0,0.0015271]
[1734552093339,0.3608,102920.0,102890.0,0.0015271]
[1734552093538,0.3608,102920.0,102890.0,0.89372041]
[1734552093847,0.409404,102930.0,102890.0,0.94334141]
[1734552094035,0.3608,102920.0,102900.0,0.048613]
[1734552094232,0.3608,102930.0,102900.0,0.3608]
[1734552094537,0.3608,102910.0,102890.0,0.3620471]
[1734552094733,0.3608,102920.0,102890.0,0.95188041]
[1734552094932,0.0005,102910.0,102900.0,0.409415]
[1734552095345,0.0005,102910.0,102900.0,0.709415]
[1734552095533,0.0005,102910.0,102890.0,1.20746241]
[1734552095734,0.0005,102910.0,102890.0,0.7701091]
[1734552095932,0.0005,102910.0,102890.0,0.95188041]
[1734552096144,0.3613,102910.0,102890.0,0.3606871]
[1734552096739,0.409913,102910.0,102890.0,0.0025271]
[1734552096945,0.3608,102900.0,102890.0,0.0025271]
[1734552097149,0.3613,102910.0,102890.0,0.28154141]
[1734552097454,0.0005,102910.0,102900.0,0.048617]
[1734552097750,0.0005,102910.0,102900.0,0.348617]
[1734552098051,0.0005,102910.0,102900.0,0.709417]
[1734552098642,0.0005,102910.0,102900.0,0.409417]
[1734552099048,0.0005,102910.0,102890.0,0.60072041]
[1734552099242,0.0005,102910.0,102890.0,0.64934241]
[1734552099556,0.0005,102910.0,102890.0,0.64434241]
[1734552099753,0.0005,102910.0,102900.0,0.004]
[1734552100050,0.0005,102910.0,102900.0,0.052617]
[1734552100254,0.0005,102910.0,102900.0,0.051617]
[1734552100451,0.0005,102910.0,102900.0,0.412417]
[1734552100755,0.0005,102910.0,102900.0,0.413417]
[1734552100939,0.0005,102910.0,102900.0,0.410417]
[1734552101539,0.3613,102910.0,102900.0,0.001]
[1734552101745,0.409912,102910.0,102900.0,0.001]
[1734552102852,0.409912,102910.0,102890.0,0.0025271]
[1734552103050,0.409417,102900.0,102890.0,0.0015271]
[1734552103846,0.0005,102910.0,102890.0,0.28054241]
[1734552104150,0.3608,102900.0,102890.0,0.23692041]
[1734552104455,0.7216,102900.0,102890.0,0.0065271]
[1734552104658,0.770217,102900.0,102890.0,0.0065271]
[1734552104857,0.770217,102900.0,102860.0,0.048635]
[1734552104858,0.048628,102880.0,102860.0,0.048635]